fUSD/lending_fUSD_20250515
["ID","MTS","AMOUNT","RATE_DAILY","PERIOD"]
[361164982,1747314639810,-400.0,0.00012639,2]
[361164983,1747314639819,-400.0,0.00012639,2]
[361164984,1747314639829,-400.0,0.00012639,2]
[361164985,1747314639839,-400.0,0.00012639,2]
[361164986,1747314639848,-211.61259087,0.00012639,2]
[361164987,1747314639890,-188.38740913,0.00012639,2]
[361164988,1747314639900,-400.0,0.00012639,2]
[361164989,1747314639910,-400.0,0.00012639,2]
[361164990,1747314639919,-366.0,0.00012639,2]
[361164991,1747314639929,-400.0,0.00012639,2]
[361164992,1747314639938,-400.0,0.00012639,2]
[361164993,1747314639947,-400.0,0.00012639,2]
[361164994,1747314639957,-400.0,0.00012639,2]
[361164995,1747314639966,-400.0,0.00012639,2]
[361164996,1747314639976,-400.0,0.00012639,2]
[361164997,1747314639985,-400.0,0.00012639,2]
[361164998,1747314639996,-312.89972303,0.00012639,2]
[361164999,1747314640005,-449.89789441,0.00012639,2]
[361165000,1747314640014,-279.52119068,0.00012639,2]
[361165001,1747314640024,-400.0,0.00012639,2]
[361165002,1747314640034,-400.0,0.00012639,2]
[361165003,1747314640043,-400.0,0.00012639,2]
[361165004,1747314640053,-457.21889492,0.00012639,2]
[361165005,1747314640062,-400.0,0.00012639,2]
[361165006,1747314640072,-400.0,0.00012639,2]
[361165007,1747314640081,-400.0,0.00012639,2]
[361165008,1747314640091,-400.0,0.00012639,2]
[361165009,1747314640101,-400.0,0.00012639,2]
[361165010,1747314640110,-400.0,0.00012639,2]
[361165011,1747314640120,-400.0,0.00012639,2]
[361165012,1747314640131,-400.0,0.00012639,2]
[361165013,1747314640141,-400.0,0.00012639,2]
[361165014,1747314640150,-461.05,0.00012639,2]
[361165015,1747314640160,-296.23480307,0.00012639,2]
[361165016,1747314640169,-400.0,0.00012639,2]
[361165017,1747314640179,-912.4,0.00012639,2]
[361165018,1747314640192,-400.0,0.00012639,2]
[361165019,1747314640202,-400.0,0.00012639,2]
[361165020,1747314640211,-400.0,0.00012639,2]
[361165021,1747314640220,-167.21679294,0.00012639,2]
[361165022,1747314640231,-400.0,0.00012639,2]
[361165023,1747314640240,-465.72,0.00012639,2]
[361165024,1747314640249,-400.0,0.00012639,2]
[361165025,1747314640259,-449.43,0.00012639,2]
[361165026,1747314640270,-400.0,0.00012639,2]
[361165027,1747314640282,-493.88,0.00012639,2]
[361165028,1747314640292,-400.0,0.00012639,2]
[361165029,1747314640301,-400.0,0.00012639,2]
[361165030,1747314640312,-400.0,0.00012639,2]
[361165031,1747314640321,-400.0,0.00012639,2]
[361165032,1747314640331,-464.85,0.00012639,2]
[361165033,1747314640340,-400.0,0.00012639,2]
[361165034,1747314640349,-400.0,0.00012639,2]
[361165035,1747314640359,-866.75,0.00012639,2]
[361165036,1747314640369,-400.0,0.00012639,2]
[361165037,1747314640380,-400.0,0.00012639,2]
[361165038,1747314640389,-400.0,0.00012639,2]
[361165039,1747314640398,-1403.72155833,0.00012639,2]
[361165044,1747314642531,-1519.25844167,0.00012639,2]
[361165045,1747314642541,-400.0,0.00012639,2]
[361165046,1747314642551,-400.0,0.00012639,2]
[361165047,1747314642561,-1902.6,0.00012639,2]
[361165049,1747314642571,-263.56085548,0.00012639,2]
[361165051,1747314642580,-722.43,0.00012639,2]
[361165052,1747314642590,-400.0,0.00012639,2]
[361165054,1747314642600,-400.0,0.00012639,2]
[361165056,1747314642609,-3618.01,0.00012639,2]
[361165057,1747314642619,-400.0,0.00012639,2]
[361165058,1747314642630,-424.48,0.00012639,2]
[361165059,1747314642639,-400.0,0.00012639,2]
[361165060,1747314642649,-400.0,0.00012639,2]
[361165061,1747314642659,-400.0,0.00012639,2]
[361165062,1747314642669,-400.0,0.00012639,2]
[361165063,1747314642680,-435.21,0.00012639,2]
[361165064,1747314642689,-400.0,0.00012639,2]
[361165065,1747314642699,-400.0,0.00012639,2]
[361165066,1747314642708,-414.02653806,0.00012639,2]
[361165067,1747314642718,-400.0,0.00012639,2]
[361165068,1747314642727,-400.0,0.00012639,2]
[361165069,1747314642737,-400.0,0.00012639,2]
[361165070,1747314642747,-438.84,0.00012639,2]
[361165071,1747314642756,-400.0,0.00012639,2]
[361165072,1747314642766,-400.0,0.00012639,2]
[361165073,1747314642776,-400.0,0.00012639,2]
[361165074,1747314642785,-400.0,0.00012639,2]
[361165075,1747314642794,-400.0,0.00012639,2]
[361165076,1747314642804,-400.0,0.00012639,2]
[361165077,1747314642814,-400.0,0.00012639,2]
[361165078,1747314642823,-400.0,0.00012639,2]
[361165079,1747314642832,-400.0,0.00012639,2]
[361165080,1747314642841,-450.22,0.00012639,2]
[361165081,1747314642851,-400.0,0.00012639,2]
[361165082,1747314642861,-276.59452008,0.00012639,2]
[361165083,1747314642871,-400.0,0.00012639,2]
[361165084,1747314642881,-400.0,0.00012639,2]
[361165085,1747314642890,-400.0,0.00012639,2]
[361165086,1747314642899,-445.78573675,0.00012639,2]
[361165087,1747314642909,-400.0,0.00012639,2]
[361165088,1747314642919,-400.0,0.00012639,2]
[361165089,1747314642928,-400.0,0.00012639,2]
[361165090,1747314642937,-400.0,0.00012639,2]
[361165091,1747314642946,-400.0,0.00012639,2]
[361165092,1747314642956,-367.06514186,0.00012639,2]
[361165093,1747314642966,-400.0,0.00012639,2]
[361165094,1747314642975,-400.0,0.00012639,2]
[361165096,1747314642985,-400.0,0.00012639,2]
[361165098,1747314642995,-400.0,0.00012639,2]
[361165100,1747314643004,-400.0,0.00012639,2]
[361165102,1747314643014,-400.0,0.00012639,2]
[361165103,1747314643023,-400.0,0.00012639,2]
[361165104,1747314643033,-400.0,0.00012639,2]
[361165105,1747314643043,-400.0,0.00012639,2]
[361165106,1747314643052,-466.05754888,0.0001264,2]
[361165107,1747314643061,-400.0,0.0001264,2]
[361165108,1747314643069,-400.0,0.0001264,2]
[361165109,1747314643078,-400.0,0.0001264,2]
[361165110,1747314643086,-400.0,0.00012642,2]
[361165111,1747314643095,-400.0,0.00012642,2]
[361165112,1747314643105,-400.0,0.00012642,2]
[361165113,1747314643113,-300.0,0.0001268,2]
[361165114,1747314643122,-556.0,0.00012699,2]
[361165115,1747314643131,-200.0,0.000127,4]
[361165116,1747314643142,-200.0,0.00012701,2]
[361165117,1747314643151,-200.0,0.000128,4]
[361165118,1747314643160,-207.4,0.00012849,2]
[361165119,1747314643168,-200.0,0.000129,4]
[361165120,1747314643177,-3315.77814557,0.000129,2]
[361165121,1747314643189,-8100.29864091,0.000129,2]
[361165122,1747314643198,-3315.77814555,0.0001291,2]
[361165123,1747314643207,-400.0,0.00012912,2]
[361165124,1747314643217,-400.0,0.00012912,2]
[361165125,1747314643227,-400.0,0.00012912,2]
[361165126,1747314643447,-400.0,0.00012912,2]
[361165127,1747314643469,-400.0,0.00012912,2]
[361165128,1747314643479,-400.0,0.00012912,2]
[361165129,1747314643488,-400.0,0.00012912,2]
[361165130,1747314643498,-400.0,0.00012912,2]
[361165131,1747314643507,-400.0,0.00012912,2]
[361165132,1747314643517,-400.0,0.00012912,2]
[361165133,1747314643527,-400.0,0.00012912,2]
[361165134,1747314643536,-400.0,0.00012912,2]
[361165135,1747314643546,-400.0,0.00012912,2]
[361165136,1747314643555,-400.0,0.00012912,2]
[361165137,1747314643565,-400.0,0.00012912,2]
[361165138,1747314643575,-400.0,0.00012912,2]
[361165139,1747314643584,-400.0,0.00012912,2]
[361165140,1747314643594,-746.58,0.00012912,2]
[361165141,1747314643603,-400.0,0.00012912,2]
[361165142,1747314643613,-400.0,0.00012912,2]
[361165143,1747314643622,-400.0,0.00012912,2]
[361165144,1747314643631,-400.0,0.00012912,2]
[361165145,1747314643640,-400.0,0.00012912,2]
[361165146,1747314643650,-515.24,0.00012912,2]
[361165147,1747314643659,-400.0,0.00012912,2]
[361165148,1747314643668,-400.0,0.00012912,2]
[361165149,1747314643678,-400.0,0.00012912,2]
[361165150,1747314643687,-15522.55,0.00012912,2]
[361165151,1747314643697,-400.0,0.00012912,2]
[361165152,1747314643705,-400.0,0.00012912,2]
[361165153,1747314643714,-308.03,0.00012912,2]
[361165154,1747314643724,-400.0,0.00012912,2]
[361165155,1747314643733,-660.0,0.00012912,2]
[361165156,1747314643742,-1412.13,0.00012912,2]
[361165157,1747314643751,-400.0,0.00012912,2]
[361165158,1747314643761,-400.0,0.00012912,2]
[361165159,1747314643770,-400.0,0.00012912,2]
[361165160,1747314643779,-400.0,0.00012912,2]
[361165161,1747314643789,-400.0,0.00012912,2]
[361165162,1747314643799,-400.0,0.00012912,2]
[361165163,1747314643808,-400.0,0.00012912,2]
[361165164,1747314643818,-400.0,0.00012912,2]
[361165165,1747314643828,-400.0,0.00012912,2]
[361165166,1747314643839,-400.0,0.00012912,2]
[361165167,1747314643849,-400.0,0.00012912,2]
[361165168,1747314643858,-426.22,0.00012912,2]
[361165169,1747314643869,-400.0,0.00012912,2]
[361165170,1747314643880,-400.0,0.00012912,2]
[361165171,1747314643890,-1000.0,0.00012912,2]
[361165172,1747314643899,-781.66,0.00012912,2]
[361165173,1747314643909,-400.0,0.00012912,2]
[361165174,1747314643918,-400.0,0.00012913,2]
[361165175,1747314643928,-400.0,0.00012913,2]
[361165176,1747314643937,-206.87231817,0.00012913,2]
[361165177,1747314643946,-400.0,0.00012913,2]
[361165178,1747314643955,-400.0,0.00012913,2]
[361165179,1747314643964,-400.0,0.00012913,2]
[361165180,1747314643973,-400.0,0.00012913,2]
[361165181,1747314643982,-400.0,0.00012913,2]
[361165182,1747314643991,-352.15,0.00012913,2]
[361165183,1747314644000,-437.95688899,0.00012913,2]
[361165184,1747314644009,-491.33058584,0.00012913,2]
[361165185,1747314644018,-400.0,0.00012913,2]
[361165186,1747314644028,-400.0,0.00012913,2]
[361165187,1747314644039,-287.42,0.00012913,2]
[361165188,1747314644049,-400.0,0.00012913,2]
[361165189,1747314644059,-241.30381887,0.00012913,2]
[361165190,1747314644069,-400.0,0.00012913,2]
[361165191,1747314644078,-400.0,0.00012913,2]
[361165192,1747314644088,-290.1294266,0.00012913,2]
[361165193,1747314644098,-400.0,0.00012913,2]
[361165194,1747314644107,-400.0,0.00012913,2]
[361165195,1747314644117,-528.35565426,0.00012913,2]
[361165196,1747314644126,-400.0,0.00012913,2]
[361165197,1747314644137,-461.05,0.00012913,2]
[361165198,1747314644146,-400.0,0.00012913,2]
[361165199,1747314644156,-912.4,0.00012913,2]
[361165200,1747314644165,-432.73206896,0.00012913,2]
[361165201,1747314644175,-400.0,0.00012913,2]
[361165202,1747314644186,-400.0,0.00012913,2]
[361165203,1747314644196,-465.72,0.00012913,2]
[361165204,1747314644205,-400.0,0.00012913,2]
[361165205,1747314644215,-449.43,0.00012913,2]
[361165206,1747314644224,-400.0,0.00012913,2]
[361165207,1747314644234,-493.88,0.00012913,2]
[361165208,1747314644243,-400.0,0.00012913,2]
[361165209,1747314644252,-400.0,0.00012913,2]
[361165210,1747314644264,-400.0,0.00012913,2]
[361165211,1747314644274,-400.0,0.00012913,2]
[361165212,1747314644283,-464.85,0.00012913,2]
[361165213,1747314644294,-400.0,0.00012913,2]
[361165214,1747314644304,-866.75,0.00012913,2]
[361165215,1747314644313,-400.0,0.00012913,2]
[361165216,1747314644323,-400.0,0.00012913,2]
[361165217,1747314644542,-2922.98,0.00012913,2]
[361165218,1747314644552,-192.0645282,0.00012913,2]
[361165219,1747314644562,-1902.6,0.00012913,2]
[361165220,1747314644571,-722.43,0.00012913,2]
[361165221,1747314644581,-400.0,0.00012913,2]
[361165222,1747314644591,-3618.01,0.00012913,2]
[361165223,1747314644601,-250.8214662,0.00012913,2]
[361165224,1747314644610,-424.48,0.00012913,2]
[361165225,1747314644620,-400.0,0.00012913,2]
[361165226,1747314644631,-400.0,0.00012913,2]
[361165227,1747314644640,-400.0,0.00012913,2]
[361165228,1747314644651,-400.0,0.00012913,2]
[361165229,1747314644660,-400.0,0.00012913,2]
[361165230,1747314644670,-400.0,0.00012913,2]
[361165231,1747314644679,-400.0,0.00012913,2]
[361165232,1747314644688,-400.0,0.00012913,2]
[361165233,1747314644697,-400.0,0.00012913,2]
[361165234,1747314644706,-400.0,0.00012913,2]
[361165235,1747314644715,-400.0,0.00012913,2]
[361165236,1747314644724,-400.0,0.00012913,2]
[361165237,1747314644734,-450.22,0.00012913,2]
[361165238,1747314644743,-386.05716373,0.00012913,2]
[361165239,1747314644752,-400.0,0.00012913,2]
[361165240,1747314644761,-400.0,0.00012913,2]
[361165241,1747314644771,-400.0,0.00012913,2]
[361165242,1747314644780,-400.0,0.00012913,2]
[361165243,1747314644789,-435.24767803,0.00012913,2]
[361165244,1747314644799,-400.0,0.00012913,2]
[361165245,1747314644809,-400.0,0.00012913,2]
[361165246,1747314644818,-400.0,0.00012913,2]
[361165247,1747314644828,-400.0,0.00012913,2]
[361165248,1747314644837,-178.8516944,0.00012913,2]
[361165249,1747314644846,-400.0,0.00012913,2]
[361165250,1747314644856,-400.0,0.00012913,2]
[361165251,1747314644865,-512.06446046,0.00012913,2]
[361165252,1747314644874,-400.0,0.00012913,2]
[361165253,1747314644884,-400.0,0.00012913,2]
[361165254,1747314644894,-400.0,0.00012916,2]
[361165255,1747314644903,-400.0,0.00012916,2]
[361165256,1747314644913,-400.0,0.00012916,2]
[361165257,1747314644923,-3315.77814555,0.00012919,2]
[361165258,1747314644934,-3315.77814555,0.00012929,2]
[361165259,1747314644942,-3315.77814555,0.00012939,2]
[361165260,1747314644950,-3315.77814555,0.00012948,2]
[361165261,1747314644960,-3315.77814555,0.00012958,2]
[361165262,1747314644969,-3315.77814555,0.00012968,2]
[361165263,1747314644978,-449.74993654,0.00012973,2]
[361165264,1747314644987,-3315.77814555,0.00012977,2]
[361165265,1747314644997,-400.0,0.00012986,2]
[361165266,1747314645006,-400.0,0.00012986,2]
[361165267,1747314645015,-201.45824039,0.00012986,2]
[361165268,1747314645024,-1427.87,0.00012986,2]
[361165269,1747314645033,-400.0,0.00012986,2]
[361165270,1747314645042,-400.0,0.00012987,2]
[361165271,1747314645052,-400.0,0.00012987,2]
[361165272,1747314645061,-400.0,0.00012987,2]
[361165273,1747314645071,-400.0,0.00012987,2]
[361165274,1747314645080,-400.0,0.00012987,2]
[361165275,1747314645091,-573.41,0.00012987,2]
[361165276,1747314645101,-400.0,0.00012987,2]
[361165277,1747314645111,-3206.85919666,0.00012987,2]
[361165278,1747314645120,-530.42,0.00012987,2]
[361165279,1747314645131,-484.70109246,0.00012987,2]
[361165280,1747314645141,-151.0,0.00012987,2]
[361165281,1747314645150,-400.0,0.00012987,2]
[361165282,1747314645159,-3315.77814555,0.00012987,2]
[361165283,1747314645169,-400.0,0.00012987,2]
[361165284,1747314645178,-925.4,0.00012987,2]
[361165285,1747314645190,-831.24592148,0.00012988,2]
[361165286,1747314645199,-274.08792187,0.0001299,2]
[361165287,1747314645208,-274.08792187,0.0001299,2]
[361165288,1747314645218,-274.08792187,0.0001299,2]
[361165289,1747314645228,-156466.07828024,0.00013,2]
[361165290,1747314645239,-1232893.71103692,0.00013,2]
[361165291,1747314645455,-566.43626,0.00013,2]
[361165292,1747314645467,-888.28561574,0.00013,2]
[361165293,1747314645850,-5443.1420023,0.00013,2]
[361165294,1747314645862,-475.74,0.00013,2]
[361165295,1747314645874,-10265.0,0.00013,2]
[361165299,1747314685239,306.89966509,0.00027397,120]
[361165300,1747314757365,150.0,0.00012265,7]
[361165302,1747314982010,-383.84186148,0.00010181,2]
[361165303,1747314984268,-164.10813852,0.00010181,2]
[361165304,1747315162576,-163.2632268,0.0001,2]
[361165305,1747315166425,-263.02631424,0.0001,2]
[361165306,1747315178445,-23.71045896,0.0001,2]
[361165307,1747315326010,400.0,0.00023287,30]
[361165308,1747315392309,151.1,0.00021945,30]
[361165312,1747315556562,5560.0,0.00025,30]
[361165328,1747315711968,663.84520802,0.00025,120]
[361165331,1747315712657,697.25309979,0.00027,120]
[361165367,1747315779593,1333.0,0.00027397,120]
[361165374,1747315831599,-498.901774,0.00011741,2]
[361165376,1747315831609,-156.67798247,0.000118,2]
[361165377,1747315831619,-250.0,0.00011834,2]
[361165378,1747315831628,-178.5,0.00011845,2]
[361165379,1747315831638,-421.0375671,0.00011867,2]
[361165380,1747315831767,-4012.2824329,0.00011867,2]
[361165381,1747315831777,-2506.01441521,0.000119,2]
[361165382,1747315831786,-1200.0,0.00011998,2]
[361165383,1747315831796,-500.0,0.00012,2]
[361165384,1747315831807,-300.0,0.00012106,2]
[361165385,1747315831816,-3461.44,0.00012108,2]
[361165386,1747315831826,-1000.0,0.00012152,2]
[361165387,1747315831836,-7568.84778479,0.00012247,2]
[361165388,1747315831855,-1856.34571312,0.00012247,2]
[361165389,1747315831867,-420.68212066,0.00012247,2]
[361165390,1747315831878,-12565.24438143,0.00012247,2]
[361165391,1747315831888,-547.95,0.00012445,2]
[361165392,1747315831898,-2467.21,0.000125,2]
[361165393,1747315831908,-4623.1521963,0.00012629,2]
[361165394,1747315831918,-165.281,0.00012638,2]
[361165395,1747315831927,-1668.357,0.00012638,2]
[361165396,1747315831937,-150.0,0.00012638,2]
[361165398,1747315831947,-250.0,0.0001277,2]
[361165399,1747315831958,-207.4,0.00012849,2]
[361165400,1747315831967,-250.0,0.00012857,2]
[361165402,1747315831977,-190.53255181,0.00012899,2]
[361165404,1747315831986,-190.53255173,0.00012899,2]
[361165406,1747315831995,-190.53255173,0.00012899,2]
[361165408,1747315832005,-190.53255173,0.00012899,2]
[361165410,1747315832015,-190.53255173,0.00012899,2]
[361165411,1747315832024,-190.53255173,0.000129,2]
[361165412,1747315832034,-190.53255173,0.000129,2]
[361165413,1747315832043,-190.53255173,0.000129,2]
[361165414,1747315832052,-190.53255173,0.000129,2]
[361165415,1747315832061,-190.53255173,0.000129,2]
[361165416,1747315832071,-2883.49228178,0.000129,2]
[361165417,1747315832084,-7830.28868601,0.000129,2]
[361165418,1747315832094,-323.13406164,0.000129,2]
[361165419,1747315832103,-596.86317891,0.000129,2]
[361165420,1747315832112,-338.40295938,0.000129,2]
[361165421,1747315832121,-596.86317887,0.0001291,2]
[361165422,1747315832131,-596.86317887,0.00012919,2]
[361165423,1747315832140,-596.86317887,0.00012929,2]
[361165424,1747315832149,-596.86317887,0.00012939,2]
[361165425,1747315832159,-596.86317887,0.00012948,2]
[361165426,1747315832168,-471.0,0.00012952,2]
[361165427,1747315832177,-596.86317887,0.00012958,2]
[361165428,1747315832186,-400.0,0.00012986,2]
[361165429,1747315832195,-467.5,0.00012986,2]
[361165430,1747315832205,-264.25913599,0.00012986,2]
[361165431,1747315832219,-486.10181751,0.00012986,2]
[361165432,1747315832229,-308.23,0.00012989,2]
[361165433,1747315832238,-308.23,0.0001299,2]
[361165434,1747315832247,-308.23,0.0001299,2]
[361165435,1747315832257,-308.23,0.0001299,2]
[361165436,1747315832266,-340.04480696,0.0001299,2]
[361165437,1747315832496,-340.04480696,0.0001299,2]
[361165438,1747315832506,-340.04480696,0.0001299,2]
[361165439,1747315832515,-308.23,0.0001299,2]
[361165440,1747315832526,-308.23,0.0001299,2]
[361165441,1747315832536,-308.23,0.0001299,2]
[361165442,1747315832545,-308.23,0.0001299,2]
[361165443,1747315832555,-308.23,0.0001299,2]
[361165444,1747315832566,-308.23,0.0001299,2]
[361165445,1747315832576,-5398.600332,0.00012999,2]
[361165446,1747315832586,-589.443693,0.00012999,2]
[361165447,1747315832596,-400.0,0.00012999,2]
[361165448,1747315832606,-400.0,0.00012999,2]
[361165449,1747315832616,-400.0,0.00012999,2]
[361165450,1747315832626,-400.0,0.00012999,2]
[361165451,1747315832635,-400.0,0.00012999,2]
[361165452,1747315832645,-400.0,0.00012999,2]
[361165453,1747315832656,-404.94618771,0.00012999,2]
[361165454,1747315832666,-400.0,0.00012999,2]
[361165455,1747315832675,-400.0,0.00012999,2]
[361165456,1747315832684,-466.16815826,0.00012999,2]
[361165457,1747315832694,-400.0,0.00012999,2]
[361165458,1747315832703,-400.0,0.00012999,2]
[361165459,1747315832716,-400.0,0.00012999,2]
[361165460,1747315832726,-277.75784662,0.00012999,2]
[361165461,1747315832736,-400.0,0.00012999,2]
[361165462,1747315832745,-459.3,0.00012999,2]
[361165463,1747315832754,-400.0,0.00012999,2]
[361165464,1747315832764,-400.0,0.00012999,2]
[361165465,1747315832774,-400.0,0.00012999,2]
[361165466,1747315832783,-400.0,0.00012999,2]
[361165467,1747315832793,-400.0,0.00012999,2]
[361165468,1747315832803,-400.0,0.00012999,2]
[361165469,1747315832812,-400.0,0.00012999,2]
[361165470,1747315832822,-400.0,0.00012999,2]
[361165471,1747315832831,-400.0,0.00012999,2]
[361165472,1747315832841,-432.35962492,0.00012999,2]
[361165473,1747315832851,-407.34,0.00012999,2]
[361165474,1747315832860,-874.21,0.00012999,2]
[361165475,1747315832870,-400.0,0.00012999,2]
[361165476,1747315832880,-400.0,0.00012999,2]
[361165477,1747315832889,-400.0,0.00012999,2]
[361165478,1747315832899,-400.0,0.00012999,2]
[361165479,1747315832908,-400.0,0.00012999,2]
[361165480,1747315832918,-400.0,0.00012999,2]
[361165481,1747315832927,-345.47386026,0.00012999,2]
[361165482,1747315832937,-400.0,0.00012999,2]
[361165483,1747315832946,-400.0,0.00012999,2]
[361165484,1747315832956,-400.0,0.00012999,2]
[361165485,1747315832968,-400.0,0.00012999,2]
[361165486,1747315832978,-400.0,0.00012999,2]
[361165487,1747315832987,-400.0,0.00012999,2]
[361165488,1747315832997,-400.0,0.00012999,2]
[361165489,1747315833006,-400.0,0.00012999,2]
[361165490,1747315833016,-400.0,0.00012999,2]
[361165491,1747315833027,-400.0,0.00012999,2]
[361165492,1747315833037,-400.0,0.00012999,2]
[361165493,1747315833046,-400.0,0.00012999,2]
[361165494,1747315833056,-400.0,0.00012999,2]
[361165495,1747315833066,-400.0,0.00012999,2]
[361165496,1747315833076,-400.0,0.00012999,2]
[361165497,1747315833089,-400.0,0.00012999,2]
[361165498,1747315833099,-400.0,0.00012999,2]
[361165499,1747315833109,-400.0,0.00012999,2]
[361165500,1747315833118,-454.34234826,0.00012999,2]
[361165501,1747315833128,-400.0,0.00012999,2]
[361165502,1747315833138,-400.0,0.00012999,2]
[361165503,1747315833148,-400.0,0.00012999,2]
[361165504,1747315833157,-400.0,0.00012999,2]
[361165505,1747315833167,-400.0,0.00012999,2]
[361165506,1747315833177,-400.0,0.00012999,2]
[361165507,1747315833186,-400.0,0.00012999,2]
[361165508,1747315833196,-492.64,0.00012999,2]
[361165509,1747315833205,-400.0,0.00012999,2]
[361165510,1747315833216,-506.6,0.00012999,2]
[361165511,1747315833226,-400.0,0.00012999,2]
[361165512,1747315833235,-400.0,0.00012999,2]
[361165513,1747315833245,-400.0,0.00012999,2]
[361165514,1747315833255,-400.0,0.00012999,2]
[361165515,1747315833264,-400.0,0.00012999,2]
[361165516,1747315833273,-400.0,0.00012999,2]
[361165517,1747315833283,-400.0,0.00012999,2]
[361165518,1747315833292,-400.0,0.00012999,2]
[361165519,1747315833302,-400.0,0.00012999,2]
[361165520,1747315833311,-400.0,0.00012999,2]
[361165521,1747315833320,-284.99603363,0.00012999,2]
[361165522,1747315833329,-532.92,0.00012999,2]
[361165523,1747315833339,-400.0,0.00012999,2]
[361165524,1747315833348,-400.0,0.00012999,2]
[361165525,1747315833358,-400.0,0.00012999,2]
[361165526,1747315833367,-400.0,0.00012999,2]
[361165527,1747315833375,-400.0,0.00012999,2]
[361165528,1747315833385,-383.58345675,0.00012999,2]
[361165529,1747315833394,-400.0,0.00012999,2]
[361165530,1747315833404,-400.0,0.00012999,2]
[361165531,1747315833413,-400.0,0.00012999,2]
[361165532,1747315833423,-400.0,0.00012999,2]
[361165533,1747315833432,-400.0,0.00012999,2]
[361165534,1747315833441,-400.0,0.00012999,2]
[361165535,1747315833450,-187.80673598,0.00012999,2]
[361165536,1747315833461,-400.0,0.00012999,2]
[361165537,1747315833470,-400.0,0.00012999,2]
[361165538,1747315833480,-400.0,0.00012999,2]
[361165539,1747315833489,-422.63,0.00012999,2]
[361165540,1747315833498,-400.0,0.00012999,2]
[361165541,1747315833508,-465.19,0.00012999,2]
[361165542,1747315833518,-400.0,0.00012999,2]
[361165543,1747315833528,-400.0,0.00012999,2]
[361165544,1747315833538,-414.44122591,0.00012999,2]
[361165545,1747315833548,-400.0,0.00012999,2]
[361165546,1747315833558,-400.0,0.00012999,2]
[361165547,1747315833568,-400.0,0.00012999,2]
[361165548,1747315833578,-400.0,0.00012999,2]
[361165549,1747315833587,-400.0,0.00012999,2]
[361165550,1747315833597,-400.0,0.00012999,2]
[361165551,1747315833608,-400.0,0.00012999,2]
[361165552,1747315833617,-400.0,0.00012999,2]
[361165553,1747315833627,-426.91,0.00012999,2]
[361165554,1747315833636,-400.0,0.00012999,2]
[361165555,1747315833646,-1000.0,0.00012999,2]
[361165556,1747315833656,-400.0,0.00012999,2]
[361165557,1747315833665,-400.0,0.00012999,2]
[361165558,1747315833676,-400.0,0.00012999,2]
[361165559,1747315833685,-400.0,0.00012999,2]
[361165560,1747315833695,-400.0,0.00012999,2]
[361165561,1747315833706,-457.49,0.00012999,2]
[361165562,1747315833719,-400.0,0.00012999,2]
[361165563,1747315833729,-400.0,0.00012999,2]
[361165564,1747315833739,-400.0,0.00012999,2]
[361165565,1747315833749,-400.0,0.00012999,2]